[Event "Titled Tuesday Blitz March 14 Late 2023"]
[White "Michalski, Olaf"]
[Black "Pham, Khoi"]
[WhiteFideId "1106740"]
[BlackFideId "1054988"]
[WhiteElo "2173"]
[BlackElo "2541"]
[Result "0-1"]
[Round "03"]
[TimeControl "180+1"]
[Date "2023.03.14"]
[WhiteClock "0:00:02"]
[BlackClock "0:01:01"]

1. d4 {[%clk 0:03:00]}  f5 {[%clk 0:02:58]} 2. g3 {[%clk 0:03:00]}  Nf6 {[%clk 0:02:57]} 3. Bg2 {[%clk 0:03:00]}  g6 {[%clk 0:02:56]} 4. c3 {[%clk 0:03:01]}  Bg7 {[%clk 0:02:57]} 5. Qb3 {[%clk 0:03:01]}  c6 {[%clk 0:02:52]} 6. Nd2 {[%clk 0:02:48]}  e6 {[%clk 0:02:44]} 7. Nh3 {[%clk 0:02:38]}  O-O {[%clk 0:02:43]} 8. O-O {[%clk 0:02:38]}  Kh8 {[%clk 0:02:42]} 9. e4 {[%clk 0:02:24]}  fxe4 {[%clk 0:02:36]} 10. Nxe4 {[%clk 0:02:24]}  Nxe4 {[%clk 0:02:37]} 11. Bxe4 {[%clk 0:02:24]}  d5 {[%clk 0:02:37]} 12. Bg2 {[%clk 0:01:59]}  e5 {[%clk 0:02:35]} 13. dxe5 {[%clk 0:01:33]}  Bxe5 {[%clk 0:02:36]} 14. Bh6 {[%clk 0:01:11]}  Bg7 {[%clk 0:02:28]} 15. Bxg7+ {[%clk 0:01:09]}  Kxg7 {[%clk 0:02:29]} 16. Nf4 {[%clk 0:01:04]}  Qf6 {[%clk 0:02:27]} 17. Rae1 {[%clk 0:01:00]}  Na6 {[%clk 0:02:14]} 18. h4 {[%clk 0:00:48]}  Nc5 {[%clk 0:02:07]} 19. Qb4 {[%clk 0:00:46]}  b6 {[%clk 0:02:06]} 20. c4 {[%clk 0:00:42]}  d4 {[%clk 0:01:49]} 21. Qd2 {[%clk 0:00:39]}  Bf5 {[%clk 0:01:38]} 22. b4 {[%clk 0:00:34]}  Ne6 {[%clk 0:01:34]} 23. Nxe6+ {[%clk 0:00:18]}  Bxe6 {[%clk 0:01:35]} 24. Bxc6 {[%clk 0:00:16]}  Bxc4 {[%clk 0:01:28]} 25. b5 {[%clk 0:00:17]}  Bxf1 {[%clk 0:01:27]} 26. Rxf1 {[%clk 0:00:15]}  Rad8 {[%clk 0:01:26]} 27. Re1 {[%clk 0:00:14]}  d3 {[%clk 0:01:23]} 28. Re3 {[%clk 0:00:14]}  Qf5 {[%clk 0:01:12]} 29. Kg2 {[%clk 0:00:13]}  Rf7 {[%clk 0:01:08]} 30. Qc3+ {[%clk 0:00:12]}  Qf6 {[%clk 0:01:07]} 31. Qd2 {[%clk 0:00:12]}  Qd4 {[%clk 0:01:06]} 32. Re4 {[%clk 0:00:10]}  Rxf2+ {[%clk 0:01:00]} 33. Qxf2 {[%clk 0:00:07]}  Qxf2+ {[%clk 0:01:01]} 34. Kxf2 {[%clk 0:00:06]}  d2 {[%clk 0:01:02]} 35. Re7+ {[%clk 0:00:02]}  Kf6 {[%clk 0:01:01]} 0-1


[Site "https://www.chess.com"]

[Event "Titled Tuesday Blitz March 14 Late 2023"]
[White "Mirimanian, Hayk"]
[Black "Svane, Rasmus"]
[WhiteFideId "4700180"]
[BlackFideId "4657101"]
[WhiteElo "2280"]
[BlackElo "2597"]
[Result "0-1"]
[Round "03"]
[TimeControl "180+1"]
[Date "2023.03.14"]
[WhiteClock "0:00:08"]
[BlackClock "0:01:11"]

1. e4 {[%clk 0:02:55]}  c6 {[%clk 0:02:59]} 2. Nf3 {[%clk 0:02:53]}  d5 {[%clk 0:03:00]} 3. Nc3 {[%clk 0:02:51]}  dxe4 {[%clk 0:03:01]} 4. Nxe4 {[%clk 0:02:46]}  Nf6 {[%clk 0:03:02]} 5. Nxf6+ {[%clk 0:02:36]}  exf6 {[%clk 0:03:03]} 6. d4 {[%clk 0:02:36]}  Bd6 {[%clk 0:03:03]} 7. Bd3 {[%clk 0:02:34]}  O-O {[%clk 0:03:04]} 8. O-O {[%clk 0:02:35]}  Re8 {[%clk 0:03:05]} 9. h3 {[%clk 0:02:30]}  Nd7 {[%clk 0:03:05]} 10. c4 {[%clk 0:02:27]}  Nf8 {[%clk 0:03:06]} 11. Qc2 {[%clk 0:02:25]}  Ng6 {[%clk 0:03:06]} 12. Bd2 {[%clk 0:02:18]}  Be6 {[%clk 0:03:06]} 13. Rfe1 {[%clk 0:02:14]}  Qd7 {[%clk 0:03:06]} 14. Bf1 {[%clk 0:02:01]}  Bf5 {[%clk 0:03:04]} 15. Qb3 {[%clk 0:01:58]}  h6 {[%clk 0:03:02]} 16. g4 {[%clk 0:01:07]}  Be6 {[%clk 0:02:44]} 17. Kh1 {[%clk 0:01:02]}  Bc7 {[%clk 0:02:16]} 18. Rad1 {[%clk 0:01:01]}  h5 {[%clk 0:02:11]} 19. gxh5 {[%clk 0:00:56]}  Bxh3 {[%clk 0:01:47]} 20. hxg6 {[%clk 0:00:33]}  Bxf1 {[%clk 0:01:46]} 21. Rxf1 {[%clk 0:00:08]}  Qh3+ {[%clk 0:01:45]} 22. Kg1 {[%clk 0:00:08]}  Qg4+ {[%clk 0:01:45]} 23. Kh1 {[%clk 0:00:08]}  Qh5+ {[%clk 0:01:46]} 24. Kg1 {[%clk 0:00:08]}  Qxg6+ {[%clk 0:01:45]} 25. Kh1 {[%clk 0:00:08]}  Qh5+ {[%clk 0:01:43]} 26. Kg1 {[%clk 0:00:08]}  Re4 {[%clk 0:01:18]} 27. Ne5 {[%clk 0:00:08]}  Bxe5 {[%clk 0:01:15]} 28. dxe5 {[%clk 0:00:09]}  Rg4+ {[%clk 0:01:14]} 29. Qg3 {[%clk 0:00:09]}  Rxg3+ {[%clk 0:01:13]} 30. fxg3 {[%clk 0:00:10]}  Qxe5 {[%clk 0:01:13]} 31. Bf4 {[%clk 0:00:08]}  Qxb2 {[%clk 0:01:13]} 32. Rd7 {[%clk 0:00:09]}  Re8 {[%clk 0:01:11]} 33. Rf2 {[%clk 0:00:07]}  Re1+ {[%clk 0:01:10]} 34. Kg2 {[%clk 0:00:07]}  Re2 {[%clk 0:01:10]} 35. Rxe2 {[%clk 0:00:07]}  Qxe2+ {[%clk 0:01:11]} 36. Kg1 {[%clk 0:00:07]}  Qxc4 {[%clk 0:01:10]} 37. Rxb7 {[%clk 0:00:08]}  Qxa2 {[%clk 0:01:11]} 0-1


[Site "https://www.chess.com"]

[Event "Titled Tuesday Blitz March 14 Late 2023"]
[White "Miszler, Levente"]
[Black "Saveliev, Alexei"]
[WhiteFideId "763276"]
[BlackFideId "24128546"]
[WhiteElo "2176"]
[BlackElo "2271"]
[Result "1-0"]
[Round "03"]
[TimeControl "180+1"]
[Date "2023.03.14"]
[WhiteClock "0:00:06"]
[BlackClock "0:00:02"]

1. Nf3 {[%clk 0:03:00]}  g6 {[%clk 0:03:00]} 2. c4 {[%clk 0:02:59]}  Bg7 {[%clk 0:03:00]} 3. g3 {[%clk 0:02:59]}  d6 {[%clk 0:03:00]} 4. Bg2 {[%clk 0:03:00]}  c5 {[%clk 0:03:01]} 5. O-O {[%clk 0:03:00]}  Nc6 {[%clk 0:03:01]} 6. Nc3 {[%clk 0:03:00]}  e5 {[%clk 0:03:01]} 7. Ne1 {[%clk 0:02:57]}  f5 {[%clk 0:03:00]} 8. Nc2 {[%clk 0:02:56]}  Nf6 {[%clk 0:03:00]} 9. Ne3 {[%clk 0:02:55]}  Be6 {[%clk 0:02:57]} 10. Ned5 {[%clk 0:02:55]}  Nd7 {[%clk 0:02:50]} 11. a3 {[%clk 0:02:51]}  O-O {[%clk 0:02:37]} 12. d3 {[%clk 0:02:50]}  g5 {[%clk 0:02:21]} 13. Rb1 {[%clk 0:02:48]}  f4 {[%clk 0:02:17]} 14. b4 {[%clk 0:02:46]}  Nd4 {[%clk 0:02:08]} 15. Ne4 {[%clk 0:02:41]}  Bxd5 {[%clk 0:01:55]} 16. cxd5 {[%clk 0:02:40]}  g4 {[%clk 0:01:56]} 17. bxc5 {[%clk 0:02:32]}  Nxc5 {[%clk 0:01:46]} 18. Nxc5 {[%clk 0:02:30]}  dxc5 {[%clk 0:01:47]} 19. Rxb7 {[%clk 0:02:19]}  f3 {[%clk 0:01:44]} 20. exf3 {[%clk 0:02:18]}  gxf3 {[%clk 0:01:44]} 21. Bh3 {[%clk 0:02:18]}  Qxd5 {[%clk 0:01:43]} 22. Rd7 {[%clk 0:02:01]}  Qc6 {[%clk 0:01:36]} 23. Qd2 {[%clk 0:01:55]}  Rad8 {[%clk 0:01:28]} 24. Rxa7 {[%clk 0:01:53]}  h6 {[%clk 0:01:18]} 25. Qa5 {[%clk 0:01:48]}  Ne2+ {[%clk 0:00:51]} 26. Kh1 {[%clk 0:01:47]}  Rxd3 {[%clk 0:00:48]} 27. Be3 {[%clk 0:01:28]}  c4 {[%clk 0:00:38]} 28. Rc7 {[%clk 0:01:16]}  Qe4 {[%clk 0:00:22]} 29. Be6+ {[%clk 0:01:00]}  Kh8 {[%clk 0:00:21]} 30. Qa7 {[%clk 0:00:53]}  Qg6 {[%clk 0:00:15]} 31. Bxc4 {[%clk 0:00:49]}  Rc3 {[%clk 0:00:12]} 32. Bf7 {[%clk 0:00:24]}  Rxc7 {[%clk 0:00:08]} 33. Bxg6 {[%clk 0:00:24]}  Rxa7 {[%clk 0:00:09]} 34. Bxa7 {[%clk 0:00:24]}  Nd4 {[%clk 0:00:02]} 35. Be4 {[%clk 0:00:20]}  Rf7 {[%clk 0:00:01]} 36. Bc5 {[%clk 0:00:18]}  Rc7 {[%clk 0:00:01]} 37. Bxd4 {[%clk 0:00:15]}  exd4 {[%clk 0:00:02]} 38. Bxf3 {[%clk 0:00:15]}  Rc3 {[%clk 0:00:02]} 39. Be4 {[%clk 0:00:13]}  Rxa3 {[%clk 0:00:03]} 40. Rd1 {[%clk 0:00:12]}  Bf6 {[%clk 0:00:03]} 41. Kg2 {[%clk 0:00:12]}  Kg7 {[%clk 0:00:04]} 42. h3 {[%clk 0:00:12]}  Ra2 {[%clk 0:00:03]} 43. Kf3 {[%clk 0:00:11]}  Ra3+ {[%clk 0:00:03]} 44. Bd3 {[%clk 0:00:10]}  Kf7 {[%clk 0:00:02]} 45. Ke4 {[%clk 0:00:11]}  Ra7 {[%clk 0:00:02]} 46. f4 {[%clk 0:00:11]}  Re7+ {[%clk 0:00:01]} 47. Kf5 {[%clk 0:00:11]}  Rc7 {[%clk 0:00:01]} 48. g4 {[%clk 0:00:12]}  Rc5+ {[%clk 0:00:02]} 49. Ke4 {[%clk 0:00:11]}  Rc7 {[%clk 0:00:03]} 50. Rb1 {[%clk 0:00:05]}  Re7+ {[%clk 0:00:03]} 51. Kf5 {[%clk 0:00:05]}  Re3 {[%clk 0:00:03]} 52. Bc4+ {[%clk 0:00:05]}  Kg7 {[%clk 0:00:03]} 53. Rb7+ {[%clk 0:00:04]}  Be7 {[%clk 0:00:03]} 54. g5 {[%clk 0:00:02]}  hxg5 {[%clk 0:00:04]} 55. fxg5 {[%clk 0:00:02]}  Kf8 {[%clk 0:00:04]} 56. Rb8+ {[%clk 0:00:02]}  Kg7 {[%clk 0:00:04]} 57. Rg8+ {[%clk 0:00:02]}  Kh7 {[%clk 0:00:04]} 58. g6+ {[%clk 0:00:03]}  Kh6 {[%clk 0:00:05]} 59. Rh8+ {[%clk 0:00:03]}  Kg7 {[%clk 0:00:04]} 60. Rh7+ {[%clk 0:00:04]}  Kf8 {[%clk 0:00:05]} 61. Rf7+ {[%clk 0:00:04]}  Ke8 {[%clk 0:00:05]} 62. Bb5+ {[%clk 0:00:04]}  Kd8 {[%clk 0:00:05]} 63. g7 {[%clk 0:00:05]}  Rg3 {[%clk 0:00:03]} 64. Rf8+ {[%clk 0:00:05]}  Kc7 {[%clk 0:00:02]} 65. g8=Q {[%clk 0:00:04]}  Rf3+ {[%clk 0:00:03]} 66. Ke6 {[%clk 0:00:04]}  Rxf8 {[%clk 0:00:03]} 67. Qg3+ {[%clk 0:00:04]}  Kb6 {[%clk 0:00:02]} 68. Kxe7 {[%clk 0:00:04]}  Rc8 {[%clk 0:00:01]} 69. Qd6+ {[%clk 0:00:03]}  Kxb5 {[%clk 0:00:02]} 70. Qxd4 {[%clk 0:00:03]}  Rc7+ {[%clk 0:00:02]} 71. Ke6 {[%clk 0:00:02]}  Rc6+ {[%clk 0:00:03]} 72. Ke5 {[%clk 0:00:02]}  Rh6 {[%clk 0:00:01]} 73. Qd5+ {[%clk 0:00:02]}  Kb6 {[%clk 0:00:01]} 74. Qf3 {[%clk 0:00:03]}  Rh4 {[%clk 0:00:01]} 75. Qg3 {[%clk 0:00:03]}  Rh5+ {[%clk 0:00:01]} 76. Kf4 {[%clk 0:00:04]}  Rh8 {[%clk 0:00:02]} 77. h4 {[%clk 0:00:04]}  Kc6 {[%clk 0:00:02]} 78. Qg5 {[%clk 0:00:05]}  Kd7 {[%clk 0:00:02]} 79. h5 {[%clk 0:00:05]}  Ke8 {[%clk 0:00:02]} 80. h6 {[%clk 0:00:06]}  Rf8+ {[%clk 0:00:02]} 81. Kg4 {[%clk 0:00:06]}  Kf7 {[%clk 0:00:03]} 82. Kh5 {[%clk 0:00:06]}  Rg8 {[%clk 0:00:03]} 83. Qf5+ {[%clk 0:00:06]}  Ke8 {[%clk 0:00:03]} 84. h7 {[%clk 0:00:06]}  Rh8 {[%clk 0:00:04]} 85. Kh6 {[%clk 0:00:06]}  Ke7 {[%clk 0:00:04]} 86. Kg7 {[%clk 0:00:07]}  Rd8 {[%clk 0:00:01]} 87. h8=Q {[%clk 0:00:06]}  Rd7 {[%clk 0:00:02]} 88. Qhf8# {[%clk 0:00:06]} 1-0


[Site "https://www.chess.com"]

[Event "Titled Tuesday Blitz March 14 Late 2023"]
[White "Naroditsky, Daniel"]
[Black "Galchenko, Matvey"]
[WhiteFideId "2026961"]
[BlackFideId "24175480"]
[WhiteElo "2633"]
[BlackElo "2404"]
[Result "1/2-1/2"]
[Round "03"]
[TimeControl "180+1"]
[Date "2023.03.14"]
[WhiteClock "0:00:39"]
[BlackClock "0:01:00"]

1. d4 {[%clk 0:02:59]}  Nf6 {[%clk 0:02:58]} 2. Nc3 {[%clk 0:02:59]}  d5 {[%clk 0:02:56]} 3. Bf4 {[%clk 0:02:58]}  c5 {[%clk 0:02:56]} 4. e4 {[%clk 0:02:47]}  Nxe4 {[%clk 0:02:55]} 5. Nxe4 {[%clk 0:02:47]}  dxe4 {[%clk 0:02:56]} 6. dxc5 {[%clk 0:02:48]}  Qa5+ {[%clk 0:02:56]} 7. c3 {[%clk 0:02:49]}  Qxc5 {[%clk 0:02:57]} 8. Qa4+ {[%clk 0:02:50]}  Nc6 {[%clk 0:02:57]} 9. Qxe4 {[%clk 0:02:50]}  g6 {[%clk 0:02:58]} 10. Nf3 {[%clk 0:02:41]}  Bg7 {[%clk 0:02:57]} 11. Qc4 {[%clk 0:02:41]}  Qxc4 {[%clk 0:02:41]} 12. Bxc4 {[%clk 0:02:42]}  O-O {[%clk 0:02:42]} 13. O-O-O {[%clk 0:02:34]}  Bg4 {[%clk 0:02:32]} 14. h3 {[%clk 0:02:34]}  Bxf3 {[%clk 0:02:25]} 15. gxf3 {[%clk 0:02:35]}  Rad8 {[%clk 0:02:24]} 16. Be3 {[%clk 0:02:25]}  e6 {[%clk 0:01:58]} 17. a4 {[%clk 0:02:15]}  Rc8 {[%clk 0:01:53]} 18. Bb5 {[%clk 0:01:57]}  a6 {[%clk 0:01:31]} 19. Bxc6 {[%clk 0:01:58]}  Rxc6 {[%clk 0:01:32]} 20. Rd7 {[%clk 0:01:58]}  Rc4 {[%clk 0:01:29]} 21. Rxb7 {[%clk 0:01:51]}  Rxa4 {[%clk 0:01:28]} 22. Kc2 {[%clk 0:01:43]}  h5 {[%clk 0:01:21]} 23. Rd1 {[%clk 0:01:40]}  Rh4 {[%clk 0:01:20]} 24. Rdd7 {[%clk 0:01:39]}  Rxh3 {[%clk 0:01:16]} 25. Bc5 {[%clk 0:01:39]}  Rc8 {[%clk 0:01:16]} 26. Rxf7 {[%clk 0:01:39]}  Bxc3 {[%clk 0:01:04]} 27. bxc3 {[%clk 0:01:24]}  Rxc5 {[%clk 0:01:04]} 28. Rg7+ {[%clk 0:01:25]}  Kh8 {[%clk 0:01:00]} 29. Rgf7 {[%clk 0:01:08]}  Kg8 {[%clk 0:01:00]} 30. Rg7+ {[%clk 0:00:59]}  Kh8 {[%clk 0:01:00]} 31. Rh7+ {[%clk 0:00:51]}  Kg8 {[%clk 0:01:00]} 32. Rbg7+ {[%clk 0:00:52]}  Kf8 {[%clk 0:01:01]} 33. Rb7 {[%clk 0:00:40]}  Kg8 {[%clk 0:01:00]} 34. Rhg7+ {[%clk 0:00:39]} 1/2-1/2


[Site "https://www.chess.com"]

[Event "Titled Tuesday Blitz March 14 Late 2023"]
[White "Ozates, Tuna"]
[Black "Bernat, David"]
[WhiteFideId "6354521"]
[BlackFideId "2099225"]
[WhiteElo "2151"]
[BlackElo "2471"]
[Result "1-0"]
[Round "03"]
[TimeControl "180+1"]
[Date "2023.03.14"]
[WhiteClock "0:01:52"]
[BlackClock "0:01:56"]

1. d4 {[%clk 0:03:00]}  d5 {[%clk 0:02:59]} 2. c4 {[%clk 0:03:01]}  e5 {[%clk 0:03:00]} 3. dxe5 {[%clk 0:02:57]}  d4 {[%clk 0:03:01]} 4. Nf3 {[%clk 0:02:54]}  Nc6 {[%clk 0:03:01]} 5. g3 {[%clk 0:02:54]}  Nge7 {[%clk 0:03:01]} 6. Bg2 {[%clk 0:02:54]}  Ng6 {[%clk 0:03:01]} 7. O-O {[%clk 0:02:55]}  Ngxe5 {[%clk 0:03:02]} 8. Nxe5 {[%clk 0:02:51]}  Nxe5 {[%clk 0:03:03]} 9. b4 {[%clk 0:02:46]}  Nxc4 {[%clk 0:02:57]} 10. Na3 {[%clk 0:02:28]}  Nxa3 {[%clk 0:02:46]} 11. Bxa3 {[%clk 0:02:22]}  a5 {[%clk 0:02:46]} 12. Rb1 {[%clk 0:02:19]}  axb4 {[%clk 0:02:45]} 13. Bxb4 {[%clk 0:02:19]}  Bxb4 {[%clk 0:02:46]} 14. Rxb4 {[%clk 0:02:19]}  c5 {[%clk 0:02:44]} 15. Ra4 {[%clk 0:02:12]}  Rxa4 {[%clk 0:02:39]} 16. Qxa4+ {[%clk 0:02:13]}  Bd7 {[%clk 0:02:39]} 17. Qb3 {[%clk 0:02:10]}  O-O {[%clk 0:02:32]} 18. Qxb7 {[%clk 0:02:06]}  Be6 {[%clk 0:02:32]} 19. a4 {[%clk 0:02:05]}  Qa5 {[%clk 0:02:29]} 20. Qb5 {[%clk 0:02:04]}  Qxb5 {[%clk 0:02:28]} 21. axb5 {[%clk 0:02:04]}  Rb8 {[%clk 0:02:27]} 22. Rb1 {[%clk 0:02:05]}  Bc4 {[%clk 0:02:24]} 23. b6 {[%clk 0:02:04]}  Bxe2 {[%clk 0:02:24]} 24. b7 {[%clk 0:02:05]}  g5 {[%clk 0:02:14]} 25. Ra1 {[%clk 0:01:55]}  Rxb7 {[%clk 0:01:58]} 26. Bxb7 {[%clk 0:01:54]}  c4 {[%clk 0:01:56]} 27. Ba6 {[%clk 0:01:52]} 1-0


[Site "https://www.chess.com"]

[Event "Titled Tuesday Blitz March 14 Late 2023"]
[White "Ozer, Omer Faruk"]
[Black "Harris, Ian"]
[WhiteFideId "6354564"]
[BlackFideId "2020092"]
[WhiteElo "2260"]
[BlackElo "2310"]
[Result "1-0"]
[Round "03"]
[TimeControl "180+1"]
[Date "2023.03.14"]
[WhiteClock "0:00:06"]
[BlackClock "0:00:17"]

1. d4 {[%clk 0:03:00]}  d5 {[%clk 0:02:59]} 2. c4 {[%clk 0:02:56]}  e6 {[%clk 0:03:00]} 3. Nc3 {[%clk 0:02:56]}  Nf6 {[%clk 0:03:00]} 4. Bg5 {[%clk 0:02:56]}  Bb4 {[%clk 0:02:55]} 5. cxd5 {[%clk 0:02:55]}  exd5 {[%clk 0:02:55]} 6. e3 {[%clk 0:02:55]}  O-O {[%clk 0:02:51]} 7. Bd3 {[%clk 0:02:55]}  c6 {[%clk 0:02:51]} 8. Ne2 {[%clk 0:02:54]}  Re8 {[%clk 0:02:48]} 9. O-O {[%clk 0:02:54]}  Bd6 {[%clk 0:02:44]} 10. Bf4 {[%clk 0:02:11]}  a5 {[%clk 0:02:35]} 11. Qd2 {[%clk 0:02:06]}  Bxf4 {[%clk 0:02:07]} 12. Nxf4 {[%clk 0:02:06]}  Nbd7 {[%clk 0:02:07]} 13. Rae1 {[%clk 0:02:04]}  Nf8 {[%clk 0:02:05]} 14. Bb1 {[%clk 0:01:54]}  Ng6 {[%clk 0:02:03]} 15. Nd3 {[%clk 0:01:47]}  Qd6 {[%clk 0:01:57]} 16. f3 {[%clk 0:01:46]}  Bf5 {[%clk 0:01:48]} 17. Rf2 {[%clk 0:01:23]}  Bxd3 {[%clk 0:01:46]} 18. Bxd3 {[%clk 0:01:22]}  Re7 {[%clk 0:01:47]} 19. Na4 {[%clk 0:01:11]}  Qb4 {[%clk 0:01:41]} 20. Qd1 {[%clk 0:00:57]}  Rae8 {[%clk 0:01:38]} 21. a3 {[%clk 0:00:54]}  Qd6 {[%clk 0:01:35]} 22. Rfe2 {[%clk 0:00:55]}  b5 {[%clk 0:01:29]} 23. Nc5 {[%clk 0:00:53]}  a4 {[%clk 0:01:28]} 24. Qc1 {[%clk 0:00:42]}  Nd7 {[%clk 0:01:25]} 25. Rc2 {[%clk 0:00:37]}  Nb6 {[%clk 0:01:25]} 26. Qd2 {[%clk 0:00:28]}  Nc4 {[%clk 0:01:24]} 27. Bxc4 {[%clk 0:00:28]}  dxc4 {[%clk 0:01:25]} 28. e4 {[%clk 0:00:25]}  f5 {[%clk 0:01:14]} 29. Qf2 {[%clk 0:00:23]}  fxe4 {[%clk 0:01:14]} 30. Nxe4 {[%clk 0:00:24]}  Qd5 {[%clk 0:01:09]} 31. Rce2 {[%clk 0:00:24]}  Kf7 {[%clk 0:01:01]} 32. h4 {[%clk 0:00:23]}  Nf4 {[%clk 0:00:49]} 33. Ng5+ {[%clk 0:00:22]}  Qxg5 {[%clk 0:00:49]} 34. hxg5 {[%clk 0:00:20]}  Rxe2 {[%clk 0:00:49]} 35. Rxe2 {[%clk 0:00:20]}  Rxe2 {[%clk 0:00:49]} 36. Qh4 {[%clk 0:00:20]}  Ne6 {[%clk 0:00:29]} 37. Qxh7 {[%clk 0:00:18]}  Rxb2 {[%clk 0:00:27]} 38. Qf5+ {[%clk 0:00:17]}  Ke7 {[%clk 0:00:27]} 39. d5 {[%clk 0:00:16]}  cxd5 {[%clk 0:00:27]} 40. Qxd5 {[%clk 0:00:16]}  c3 {[%clk 0:00:27]} 41. Qb7+ {[%clk 0:00:15]}  Kd6 {[%clk 0:00:26]} 42. Qb6+ {[%clk 0:00:14]}  Kd5 {[%clk 0:00:24]} 43. Qb7+ {[%clk 0:00:13]}  Kd6 {[%clk 0:00:23]} 44. Qb8+ {[%clk 0:00:12]}  Kd5 {[%clk 0:00:23]} 45. f4 {[%clk 0:00:12]}  c2 {[%clk 0:00:20]} 46. Qe5+ {[%clk 0:00:12]}  Kc4 {[%clk 0:00:16]} 47. Qxb2 {[%clk 0:00:13]}  Nd4 {[%clk 0:00:17]} 48. Kf2 {[%clk 0:00:11]}  Kd3 {[%clk 0:00:17]} 49. Qc1 {[%clk 0:00:05]}  Nb3 {[%clk 0:00:16]} 50. Qe3+ {[%clk 0:00:05]}  Kc4 {[%clk 0:00:17]} 51. Qe4+ {[%clk 0:00:04]}  Kc3 {[%clk 0:00:17]} 52. Qe5+ {[%clk 0:00:04]}  Kd2 {[%clk 0:00:17]} 53. Qe3+ {[%clk 0:00:05]}  Kd1 {[%clk 0:00:17]} 54. Qe1# {[%clk 0:00:06]} 1-0


[Site "https://www.chess.com"]

[Event "Titled Tuesday Blitz March 14 Late 2023"]
[White "Pakleza, Zbigniew"]
[Black "Golubev, Mikhail"]
[WhiteFideId "1119290"]
[BlackFideId "14100983"]
[WhiteElo "2410"]
[BlackElo "2374"]
[Result "0-1"]
[Round "03"]
[TimeControl "180+1"]
[Date "2023.03.14"]
[WhiteClock "0:00:08"]
[BlackClock "0:00:04"]

1. d4 {[%clk 0:03:00]}  Nf6 {[%clk 0:02:59]} 2. Nf3 {[%clk 0:03:00]}  d6 {[%clk 0:02:59]} 3. Bf4 {[%clk 0:03:00]}  Nbd7 {[%clk 0:02:58]} 4. h3 {[%clk 0:02:59]}  c5 {[%clk 0:02:37]} 5. c3 {[%clk 0:02:59]}  cxd4 {[%clk 0:02:33]} 6. cxd4 {[%clk 0:03:00]}  Qb6 {[%clk 0:02:21]} 7. Qc2 {[%clk 0:02:57]}  e5 {[%clk 0:02:11]} 8. dxe5 {[%clk 0:02:15]}  dxe5 {[%clk 0:02:11]} 9. Be3 {[%clk 0:02:15]}  Qa5+ {[%clk 0:02:07]} 10. Bd2 {[%clk 0:02:13]}  Bb4 {[%clk 0:02:05]} 11. a3 {[%clk 0:02:07]}  Bxd2+ {[%clk 0:02:05]} 12. Qxd2 {[%clk 0:02:08]}  Qb6 {[%clk 0:01:58]} 13. Nc3 {[%clk 0:02:04]}  O-O {[%clk 0:01:58]} 14. Rd1 {[%clk 0:01:24]}  e4 {[%clk 0:01:47]} 15. Nd4 {[%clk 0:01:18]}  e3 {[%clk 0:01:41]} 16. fxe3 {[%clk 0:01:19]}  Nc5 {[%clk 0:01:36]} 17. Qc2 {[%clk 0:00:48]}  Re8 {[%clk 0:01:25]} 18. b4 {[%clk 0:00:35]}  Nce4 {[%clk 0:01:16]} 19. Ncb5 {[%clk 0:00:17]}  Nd5 {[%clk 0:01:04]} 20. Rc1 {[%clk 0:00:16]}  Qf6 {[%clk 0:00:40]} 21. Nf3 {[%clk 0:00:13]}  Nxe3 {[%clk 0:00:37]} 22. Qc7 {[%clk 0:00:07]}  a6 {[%clk 0:00:23]} 23. Nbd4 {[%clk 0:00:06]}  Qg6 {[%clk 0:00:11]} 24. g4 {[%clk 0:00:06]}  Be6 {[%clk 0:00:07]} 25. Qf4 {[%clk 0:00:06]}  Nd5 {[%clk 0:00:05]} 26. Qh2 {[%clk 0:00:06]}  Qf6 {[%clk 0:00:03]} 27. Bg2 {[%clk 0:00:06]}  Ne3 {[%clk 0:00:03]} 28. g5 {[%clk 0:00:04]}  Qe7 {[%clk 0:00:02]} 29. Qf4 {[%clk 0:00:04]}  Nxg2+ {[%clk 0:00:02]} 30. Kf1 {[%clk 0:00:05]}  Nxf4 {[%clk 0:00:03]} 31. Ne5 {[%clk 0:00:06]}  Nd5 {[%clk 0:00:03]} 32. Ng4 {[%clk 0:00:07]}  Ne3+ {[%clk 0:00:03]} 33. Nxe3 {[%clk 0:00:06]}  Nd6 {[%clk 0:00:03]} 34. Ng2 {[%clk 0:00:07]}  Ne4 {[%clk 0:00:03]} 35. Nf3 {[%clk 0:00:08]}  Qd6 {[%clk 0:00:03]} 36. Rd1 {[%clk 0:00:07]}  Ng3+ {[%clk 0:00:04]} 37. Ke1 {[%clk 0:00:06]}  Qc6 {[%clk 0:00:04]} 38. Rg1 {[%clk 0:00:05]}  Qb6 {[%clk 0:00:04]} 39. e3 {[%clk 0:00:05]}  Rad8 {[%clk 0:00:04]} 40. Kf2 {[%clk 0:00:06]}  Rxd1 {[%clk 0:00:04]} 41. Rxd1 {[%clk 0:00:07]}  Ne4+ {[%clk 0:00:04]} 42. Kg1 {[%clk 0:00:07]}  Nc3 {[%clk 0:00:04]} 43. Nd4 {[%clk 0:00:08]}  Nxd1 {[%clk 0:00:04]} 0-1


[Site "https://www.chess.com"]

[Event "Titled Tuesday Blitz March 14 Late 2023"]
[White "Papayan, Oleg"]
[Black "Mendonca, Leon Luke"]
[WhiteFideId "4193911"]
[BlackFideId "35028561"]
[WhiteElo "2153"]
[BlackElo "2464"]
[Result "0-1"]
[Round "03"]
[TimeControl "180+1"]
[Date "2023.03.14"]
[WhiteClock "0:00:02"]
[BlackClock "0:00:31"]

1. e4 {[%clk 0:03:00]}  c5 {[%clk 0:02:52]} 2. Nf3 {[%clk 0:03:00]}  b6 {[%clk 0:02:52]} 3. b3 {[%clk 0:02:59]}  Bb7 {[%clk 0:02:52]} 4. e5 {[%clk 0:02:51]}  g6 {[%clk 0:02:49]} 5. Bb2 {[%clk 0:02:43]}  Bg7 {[%clk 0:02:49]} 6. Qe2 {[%clk 0:02:22]}  Nh6 {[%clk 0:02:47]} 7. Na3 {[%clk 0:02:19]}  O-O {[%clk 0:02:16]} 8. O-O-O {[%clk 0:02:19]}  d6 {[%clk 0:02:04]} 9. d4 {[%clk 0:01:59]}  cxd4 {[%clk 0:01:54]} 10. exd6 {[%clk 0:01:52]}  Qxd6 {[%clk 0:01:49]} 11. Nxd4 {[%clk 0:01:28]}  Rd8 {[%clk 0:01:47]} 12. Nab5 {[%clk 0:01:11]}  Qf4+ {[%clk 0:01:39]} 13. Qd2 {[%clk 0:01:03]}  Qxd2+ {[%clk 0:01:12]} 14. Rxd2 {[%clk 0:01:04]}  Nd7 {[%clk 0:01:12]} 15. f3 {[%clk 0:00:42]}  a6 {[%clk 0:01:05]} 16. Na3 {[%clk 0:00:25]}  Nc5 {[%clk 0:00:57]} 17. Nc4 {[%clk 0:00:15]}  b5 {[%clk 0:00:56]} 18. Na5 {[%clk 0:00:14]}  Nf5 {[%clk 0:00:48]} 19. Nxb7 {[%clk 0:00:11]}  Nxb7 {[%clk 0:00:45]} 20. Nxf5 {[%clk 0:00:04]}  Bxb2+ {[%clk 0:00:45]} 21. Kxb2 {[%clk 0:00:04]}  Rxd2 {[%clk 0:00:45]} 22. Nxe7+ {[%clk 0:00:03]}  Kf8 {[%clk 0:00:45]} 23. Nc6 {[%clk 0:00:03]}  Rc8 {[%clk 0:00:45]} 24. Nb4 {[%clk 0:00:02]}  a5 {[%clk 0:00:45]} 25. Nd3 {[%clk 0:00:01]}  Rcxc2+ {[%clk 0:00:45]} 26. Kb1 {[%clk 0:00:01]}  Nd6 {[%clk 0:00:39]} 27. Nc1 {[%clk 0:00:02]}  Rb2+ {[%clk 0:00:39]} 28. Ka1 {[%clk 0:00:02]}  b4 {[%clk 0:00:31]} 0-1


[Site "https://www.chess.com"]